bitfinex/quotes_SOLUSD_20240908
["timestamp","ask_amount","ask_price","bid_price","bid_amount"]
[1725787074779,45.0,131.01,130.98,1.96972]
[1725787074977,5.3435,131.0,130.96,1.96972]
[1725787075295,50.3439,130.99,130.96,1.96972]
[1725787075477,5.3444,130.98,130.96,1.96972]
[1725787075793,45.0,130.97,130.96,1.96972]
[1725787076006,5.344,130.99,130.96,1.96972]
[1725787076172,45.0,130.98,130.96,1.96972]
[1725787076500,50.3444,130.98,130.96,1.96972]
[1725787076793,45.0,130.98,130.96,1.96972]
[1725787078099,50.3443,130.98,130.96,1.96972]
[1725787078694,50.23348792,130.98,130.96,1.96972]
[1725787079416,50.23348792,130.98,130.95,0.4640764]
[1725787080310,44.88918792,130.98,130.95,0.4640764]
[1725787080508,44.88918792,130.98,130.96,1.96972]
[1725787080694,44.88918792,130.98,130.95,0.4640764]
[1725787081096,5.3451,130.96,130.95,0.4640764]
[1725787081416,50.3451,130.96,130.95,0.4640764]
[1725787082094,45.0,130.96,130.95,0.4640764]
[1725787082297,5.3439,130.99,130.96,1.96972]
[1725787082616,5.3436,131.0,130.96,1.96972]
[1725787082787,5.3436,131.0,130.98,1.96972]
[1725787083200,5.3439,130.99,130.98,1.96972]
[1725787083586,5.3439,130.99,130.96,1.96972]
[1725787083786,5.3444,130.98,130.96,1.96972]
[1725787084095,15.65516772,130.99,130.96,1.96972]
[1725787084303,45.0,130.98,130.96,1.96972]
[1725787084820,45.0,130.98,130.95,0.4640764]
[1725787084821,10.31116772,130.97,130.95,0.4640764]
[1725787085000,50.3451,130.96,130.95,0.4640764]
[1725787085328,60.65626772,130.96,130.95,0.4640764]
[1725787085614,83.59626772,130.96,130.95,0.4640764]
[1725787086899,15.65626772,130.96,130.95,0.4640764]
[1725787088099,10.31116772,130.96,130.95,0.4640764]
[1725787088303,10.31116772,130.96,130.95,2.4337964]
[1725787088496,0.04000003,130.97,130.95,2.4337964]
[1725787089523,5.3451,130.96,130.95,0.4640764]
[1725787090030,15.65626772,130.96,130.95,0.4640764]
[1725787090323,60.65626772,130.96,130.95,0.4640764]
[1725787094019,83.59626772,130.96,130.95,0.4640764]
[1725787095099,5.347,130.92,130.89,1.96972]
[1725787095324,160.6901602,130.96,130.89,1.96972]
[1725787095325,22.94,130.94,130.89,1.96972]
[1725787095510,10.31116772,130.94,130.89,1.96972]
[1725787096300,45.0,130.93,130.89,1.96972]
[1725787096506,5.3469,130.92,130.91,1.96972]
[1725787096719,50.3469,130.92,130.91,1.96972]
[1725787097024,15.65716772,130.94,130.93,1.96972]
[1725787097707,10.31116772,130.94,130.93,1.96972]
[1725787098622,5.3464,130.93,130.91,1.96972]
[1725787099128,15.65716772,130.94,130.91,1.96972]
[1725787099429,5.3465,130.93,130.91,1.96972]
[1725787099624,5.3467,130.92,130.89,1.96972]
[1725787100202,21.8166,130.91,130.84,1.96972]
[1725787100426,21.8166,130.91,130.82,0.8608969]
[1725787100427,11.14063994,130.9,130.88,1.96972]
[1725787101106,11.14063994,130.93,130.91,1.96972]
[1725787101307,45.0,130.92,130.91,1.96972]
[1725787101602,61.48733994,130.92,130.91,1.96972]
[1725787102221,56.14063994,130.92,130.89,1.96972]
[1725787102425,5.3475,130.9,130.89,1.96972]
[1725787102638,61.48813994,130.9,130.89,1.96972]
[1725787104023,5.346,130.94,130.93,1.96972]
[1725787104213,16.48663994,130.94,130.93,1.96972]
[1725787104612,16.48663994,130.94,130.91,1.96972]
[1725787104824,16.48713994,130.93,130.91,1.96972]
[1725787106035,45.0,130.92,130.91,1.96972]
[1725787107140,61.48733994,130.92,130.91,1.96972]
[1725787108432,5.3471,130.91,130.89,1.96972]
[1725787108615,45.0,130.9,130.89,1.96972]
[1725787109230,11.14063994,130.92,130.89,1.96972]
[1725787109438,45.0,130.91,130.89,1.96972]
[1725787110107,50.3472,130.91,130.89,1.96972]
[1725787111218,61.48783994,130.91,130.89,1.96972]
[1725787113435,16.48813994,130.9,130.89,1.96972]
[1725787113613,61.48813994,130.9,130.89,1.96972]
[1725787114432,16.48813994,130.9,130.89,1.96972]
[1725787115841,61.48813994,130.9,130.89,1.96972]
[1725787117018,5.3483,130.89,130.87,1.96972]
[1725787117245,11.14063994,130.88,130.87,1.96972]
[1725787118823,16.48903994,130.88,130.87,1.96972]
[1725787119127,61.48903994,130.88,130.87,1.96972]
[1725787119533,5.3492,130.86,130.85,1.96972]
[1725787119738,50.3492,130.86,130.85,1.96972]
[1725787122436,61.48983994,130.86,130.85,1.96972]
[1725787123752,11.14063994,130.86,130.85,1.96972]
[1725787124047,19.7793684,130.91,130.9,1.96972]
[1725787124245,11.14063994,130.91,130.9,1.96972]
[1725787124455,16.48773994,130.91,130.9,1.96972]
[1725787126356,61.48773994,130.91,130.9,1.96972]
[1725787131155,56.14063994,130.91,130.9,1.96972]
[1725787131830,5.3478,130.9,130.88,1.96972]
[1725787132032,56.14063994,130.89,130.88,1.96972]
[1725787132233,61.48863994,130.89,130.88,1.96972]
[1725787133036,5.3487,130.88,130.86,1.96972]
[1725787133228,16.48943994,130.87,130.86,1.96972]
[1725787133825,11.14063994,130.87,130.86,1.96972]
[1725787134028,16.48943994,130.87,130.86,1.96972]
[1725787134225,11.14063994,130.87,130.86,1.96972]
[1725787135732,61.48943994,130.87,130.86,1.96972]
[1725787136555,5.3495,130.86,130.84,1.96972]
[1725787136732,50.3496,130.85,130.84,1.96972]
[1725787136932,56.14063994,130.85,130.84,1.96972]
[1725787137230,11.14063994,130.85,130.84,1.96972]
[1725787137651,56.14063994,130.85,130.84,1.96972]
[1725787138957,11.14063994,130.85,130.84,1.96972]
[1725787140961,16.49023994,130.85,130.84,1.96972]
[1725787141131,61.49023994,130.85,130.84,1.96972]
[1725787144356,5.3504,130.83,130.82,0.8608969]
[1725787144557,50.3504,130.83,130.82,0.8608969]
[1725787144762,61.49103994,130.83,130.82,0.8608969]
[1725787149947,61.49103994,130.83,130.82,0.47031327]
[1725787150454,61.49103994,130.83,130.79,1.96972]
[1725787150455,5.3516,130.8,130.79,1.96972]
[1725787150643,61.49223994,130.8,130.79,1.96972]
[1725787151851,63.8522,130.85,130.82,1.96972]
[1725787151852,5.3499,130.85,130.82,1.96972]
[1725787152150,5.3499,130.85,130.84,1.96972]
[1725787152468,14.52111994,130.84,130.75,43.51087139]
[1725787152668,5.3504,130.83,130.75,43.51087139]
[1725787152844,14.52101994,130.84,130.76,1.5291775]
[1725787153164,9.17091994,130.84,130.75,15.9732]
[1725787153368,28.23972422,130.84,130.75,15.9732]
[1725787154368,5.3516,130.81,130.75,15.9732]
[1725787157964,17.8096484,130.84,130.75,15.9732]
[1725787158155,5.3507,130.83,130.75,15.9732]
[1725787158467,5.3507,130.83,130.75,43.51087139]
[1725787158945,23.1597484,130.84,130.75,43.51087139]
[1725787159144,5.3505,130.83,130.75,43.51087139]
[1725787159362,55.99838238,130.82,130.75,43.51087139]
[1725787159876,61.34928238,130.82,130.75,43.51087139]
[1725787160168,61.34928238,130.82,130.75,15.9732]
[1725787160947,5.3513,130.81,130.75,15.9732]
[1725787161168,45.0,130.8,130.75,15.9732]
[1725787161472,50.3517,130.8,130.75,15.9732]
[1725787161668,50.3517,130.8,130.73,6.2488]
[1725787161669,55.99838238,130.8,130.73,6.2488]
[1725787161874,10.99838238,130.79,130.73,6.2488]
[1725787162067,45.0,130.78,130.73,6.2488]
[1725787165066,50.3528,130.78,130.73,6.2488]
[1725787165274,55.99838238,130.78,130.73,6.2488]
[1725787165868,61.35088238,130.78,130.73,6.2488]
[1725787169357,61.35088238,130.78,130.71,15.3818]
[1725787170972,5.3545,130.73,130.71,15.3818]
[1725787171168,36.3232,130.77,130.68,16.3540969]
[1725787171377,10.99838238,130.73,130.68,16.3540969]
[1725787171674,45.0,130.72,130.68,16.3540969]
[1725787172182,5.3554,130.71,130.68,0.8608969]
[1725787172376,5.3561,130.69,130.68,0.8608969]
[1725787172883,50.3561,130.69,130.68,0.8608969]
[1725787173679,45.0,130.69,130.68,0.8608969]
[1725787173886,10.99838238,130.7,130.68,0.8608969]
[1725787174089,45.0,130.69,130.68,0.8608969]
[1725787177165,50.3561,130.69,130.68,0.8608969]
[1725787177581,61.35448238,130.69,130.68,0.8608969]
[1725787181387,10.99838238,130.69,130.68,0.8608969]
[1725787181571,16.35448238,130.69,130.68,0.8608969]
[1725787181774,10.99838238,130.69,130.68,0.8608969]
[1725787183272,55.99838238,130.69,130.68,0.8608969]
[1725787184496,61.35448238,130.69,130.68,0.8608969]
[1725787184695,71.7845582,130.69,130.68,0.8608969]
[1725787184866,5.3576,130.66,130.6,21.5353]
[1725787185186,55.99838238,130.65,130.6,21.5353]
[1725787185388,5.3587,130.63,130.56,21.5353]
[1725787185574,45.0,130.62,130.56,21.5353]
[1725787185783,10.99838238,130.63,130.56,21.5353]
[1725787185979,10.99838238,130.63,130.57,27.53767139]
[1725787186797,10.99838238,130.63,130.57,27.49767136]
[1725787187279,45.0,130.62,130.56,21.5353]
[1725787188986,55.99838238,130.62,130.56,21.5353]
[1725787189372,10.99838238,130.61,130.55,0.8608969]
[1725787189589,50.3602,130.6,130.55,0.8608969]
[1725787189794,61.35858238,130.6,130.55,0.8608969]
[1725787190215,55.99838238,130.6,130.55,0.8608969]
[1725787190590,5.3608,130.58,130.55,0.8608969]
[1725787190796,55.99838238,130.57,130.55,0.8608969]
[1725787191506,10.99838238,130.57,130.55,0.8608969]
[1725787193720,45.0,130.56,130.55,0.8608969]
[1725787194299,55.99838238,130.56,130.55,0.8608969]
[1725787195015,61.35988238,130.56,130.55,0.8608969]
[1725787195990,77.27288238,130.56,130.55,0.8608969]
[1725787196194,61.35988238,130.56,130.55,0.8608969]
[1725787196613,55.99838238,130.56,130.55,0.8608969]
[1725787196812,61.35988238,130.56,130.55,0.8608969]
[1725787198501,61.35988238,130.56,130.43,22.5591]
[1725787198502,10.99838238,130.55,130.43,22.5591]
[1725787198698,5.3632,130.52,130.43,22.5591]
[1725787198897,45.0,130.54,130.46,27.53767139]
[1725787199214,24.40018238,130.58,130.43,32.5591]
[1725787199415,5.3624,130.54,130.45,27.53767139]
[1725787200315,45.0,130.53,130.45,27.53767139]
[1725787200515,5.3619,130.55,130.45,27.53767139]
[1725787200821,16.36028238,130.55,130.45,27.53767139]
[1725787201021,10.99838238,130.54,130.47,27.53767139]
[1725787201226,10.99838238,130.57,130.47,27.53767139]
[1725787201431,10.99838238,130.55,130.45,27.53767139]
[1725787202011,5.3614,130.57,130.47,27.53767139]
[1725787202211,19.63711084,130.58,130.49,27.53767139]
[1725787202402,19.63711084,130.58,130.49,43.87377139]
[1725787202603,10.99838238,130.58,130.51,27.53767139]
[1725787202804,10.99838238,130.58,130.53,27.53767139]
[1725787203005,10.43007582,130.61,130.53,27.53767139]
[1725787203222,21.4284582,130.61,130.53,27.53767139]
[1725787203719,10.99838238,130.6,130.53,27.53767139]
[1725787205416,10.99838238,130.6,130.55,33.76067139]
[1725787205814,10.99838238,130.6,130.55,6.223]
[1725787206518,5.3602,130.59,130.55,6.223]
[1725787206730,10.99838238,130.59,130.55,6.223]
[1725787206932,10.99838238,130.59,130.53,27.53767139]
[1725787207810,16.35758238,130.62,130.53,27.53767139]
[1725787208732,10.99838238,130.61,130.53,27.53767139]
[1725787208937,55.99838238,130.61,130.53,27.53767139]
[1725787209638,61.35788238,130.61,130.53,27.53767139]
[1725787210607,10.99838238,130.61,130.55,27.53767139]
[1725787210835,48.37670428,130.65,130.57,27.53767139]
[1725787210836,24.55172846,130.65,130.57,27.53767139]
[1725787211031,26.91138238,130.65,130.57,27.53767139]
[1725787211920,10.99838238,130.64,130.57,27.53767139]
[1725787212835,16.35668238,130.64,130.57,27.53767139]
[1725787213037,50.359,130.63,130.55,27.53767139]
[1725787213240,10.99838238,130.62,130.55,27.53767139]
[1725787215320,10.99838238,130.62,130.57,27.53767139]
[1725787215636,5.3583,130.64,130.57,27.53767139]
[1725787216154,26.91138238,130.65,130.57,27.53767139]
[1725787216833,32.26918238,130.65,130.57,27.53767139]
[1725787217227,55.99838238,130.64,130.57,27.53767139]
[1725787219946,55.99838238,130.64,130.53,16.2364]
[1725787220243,55.99838238,130.64,130.53,43.77407139]
[1725787220544,5.3587,130.63,130.55,27.53767139]
[1725787221543,55.99838238,130.64,130.57,27.53767139]
[1725787221842,5.3586,130.63,130.55,27.53767139]
[1725787222044,10.99838238,130.63,130.53,43.77407139]
[1725787222243,5.3599,130.6,130.53,16.2364]
[1725787222419,5.3607,130.58,130.52,6.223]
[1725787222625,5.3607,130.58,130.51,27.53767139]
[1725787222626,26.01428238,130.58,130.5,16.2364]
[1725787222822,26.01428238,130.58,130.49,6.4327]
[1725787222823,5.3618,130.56,130.49,6.4327]
[1725787223035,45.0,130.57,130.49,6.4327]
[1725787223234,45.0,130.57,130.49,33.97037139]
[1725787223837,50.3611,130.57,130.49,33.97037139]
[1725787226728,21.263,130.61,130.51,27.53767139]
[1725787226927,5.3599,130.6,130.51,27.53767139]
[1725787228336,21.263,130.61,130.51,27.53767139]
[1725787228536,10.3883974,130.62,130.53,27.53767139]
[1725787230242,5.3594,130.61,130.53,27.53767139]
[1725787231865,10.3883974,130.62,130.53,27.53767139]
[1725787231866,15.7474974,130.62,130.53,27.53767139]
[1725787232552,5.3587,130.63,130.53,27.53767139]
[1725787232870,5.3587,130.63,130.55,27.53767139]
[1725787233461,5.3587,130.63,130.55,34.14667139]
[1725787234151,22.5562,130.64,130.55,34.14667139]
[1725787234348,16.2015,130.64,130.57,27.53767139]
[1725787234549,21.5598,130.64,130.57,27.53767139]
[1725787235570,5.3587,130.63,130.55,34.14667139]
[1725787235873,50.359,130.62,130.55,6.609]
[1725787236050,60.7473974,130.62,130.55,6.609]
[1725787236364,55.3883974,130.62,130.55,6.609]
[1725787236558,5.3586,130.63,130.55,34.14667139]
[1725787237474,5.3586,130.63,130.55,6.609]
[1725787237475,50.359,130.62,130.55,6.609]
[1725787239267,45.0,130.62,130.55,6.609]
[1725787239652,45.0,130.62,130.55,34.14667139]
[1725787240368,5.3599,130.6,130.55,6.609]
[1725787241086,5.3603,130.59,130.52,15.9261]
[1725787241247,55.3883974,130.62,130.52,15.9261]
[1725787241248,5.3607,130.58,130.52,15.9261]
[1725787241444,5.3603,130.59,130.52,15.9261]
[1725787242277,45.0,130.58,130.51,6.1185]
[1725787242669,45.0,130.59,130.51,6.1185]
[1725787243265,5.3607,130.58,130.51,6.1185]
[1725787243464,45.0,130.57,130.51,6.1185]
[1725787244105,50.3611,130.57,130.51,6.1185]
[1725787246000,5.3616,130.56,130.49,44.16007139]
[1725787246173,45.0,130.55,130.49,44.16007139]
[1725787246696,5.3611,130.57,130.49,44.16007139]
[1725787246866,45.0,130.56,130.49,44.16007139]
[1725787247189,5.3603,130.59,130.51,27.53767139]
[1725787248081,15.7482974,130.6,130.51,27.53767139]
[1725787248296,10.3883974,130.6,130.53,27.53767139]
[1725787248589,15.7481974,130.6,130.53,27.53767139]
[1725787249091,10.3883974,130.6,130.54,6.344]
[1725787250176,10.3883974,130.6,130.55,44.10687139]
[1725787252304,15.7470974,130.63,130.55,44.10687139]
[1725787252972,10.3883974,130.63,130.55,44.10687139]
[1725787253812,10.3883974,130.63,130.57,27.53767139]
[1725787254098,10.3883974,130.63,130.55,44.10687139]
[1725787254598,16.128,130.67,130.57,27.53767139]
[1725787254795,26.5163974,130.67,130.57,27.53767139]
[1725787255393,5.3574,130.66,130.59,27.53767139]
[1725787255801,5.3574,130.66,130.6,1.53103849]
[1725787256178,5.3574,130.66,130.59,27.53767139]
[1725787256498,26.5163974,130.67,130.59,27.53767139]
[1725787256674,10.3883974,130.67,130.6,6.344]
[1725787258979,10.3883974,130.67,130.61,44.10687139]
[1725787259795,29.47398927,130.7,130.61,44.10687139]
[1725787259994,45.0,130.69,130.61,44.10687139]
[1725787261379,50.3562,130.69,130.61,44.10687139]
[1725787261676,15.7453974,130.68,130.61,16.5692]
[1725787262307,5.3571,130.67,130.61,16.5692]
[1725787262493,15.7457974,130.66,130.61,16.5692]
[1725787262689,10.3883974,130.66,130.61,16.5692]
[1725787263987,5.3571,130.67,130.61,16.5692]
[1725787264293,50.3574,130.66,130.6,6.344]
[1725787264495,60.7457974,130.66,130.6,6.344]
[1725787265285,60.7457974,130.66,130.58,16.5692]
[1725787265286,55.3883974,130.66,130.58,16.5692]
[1725787265497,5.3586,130.64,130.58,16.5692]
[1725787266002,5.3579,130.65,130.58,16.5692]
[1725787267305,60.7458974,130.66,130.58,16.5692]
[1725787267503,45.0,130.66,130.59,27.53767139]
[1725787267905,13.40140514,130.69,130.59,27.53767139]
[1725787268206,5.3571,130.67,130.59,27.53767139]
[1725787268587,15.7454974,130.67,130.59,27.53767139]
[1725787270107,10.3883974,130.67,130.59,27.53767139]
[1725787271292,15.7453974,130.67,130.59,27.53767139]
[1725787273508,10.3883974,130.66,130.59,27.53767139]
[1725787275216,10.22493055,130.72,130.63,27.53767139]
[1725787275420,10.3883974,130.71,130.63,27.53767139]
[1725787275611,10.3883974,130.71,130.64,16.4648]
[1725787275801,26.2105974,130.73,130.64,17.99516805]
[1725787276112,10.3883974,130.72,130.64,17.99516805]
[1725787276318,10.3883974,130.72,130.65,1.53037005]
[1725787276494,10.3883974,130.72,130.64,16.4648]
[1725787276887,5.3553,130.71,130.64,16.4648]
[1725787277111,10.3883974,130.7,130.64,16.4648]
[1725787277415,10.3883974,130.7,130.6,23.0366]
[1725787277416,5.3567,130.68,130.6,23.0366]
[1725787277591,10.3883974,130.67,130.6,23.0366]
[1725787277792,15.7453974,130.67,130.6,23.0366]
[1725787278089,10.3883974,130.67,130.6,23.0366]
[1725787278708,10.3883974,130.67,130.61,27.53767139]
[1725787278910,5.3558,130.7,130.61,27.53767139]
[1725787279317,45.0,130.69,130.61,27.53767139]
[1725787279611,45.0,130.69,130.6,23.0366]
[1725787279612,5.3565,130.68,130.6,23.0366]
[1725787279801,15.7448974,130.68,130.6,23.0366]
[1725787282610,15.7448974,130.68,130.61,27.53767139]
[1725787285598,10.3883974,130.68,130.63,27.53767139]
[1725787285927,5.3549,130.72,130.65,27.53767139]
[1725787286427,5.3558,130.7,130.63,27.53767139]
[1725787286719,15.7441974,130.7,130.63,27.53767139]
[1725787286922,10.3883974,130.69,130.63,27.53767139]
[1725787287832,10.3883974,130.69,130.6,23.0366]
[1725787288122,5.3575,130.66,130.6,23.0366]
[1725787288900,5.357,130.67,130.6,23.0366]
[1725787289101,45.0,130.66,130.6,23.0366]
[1725787290535,50.3574,130.66,130.6,16.4648]
[1725787290847,45.0,130.66,130.6,16.4648]
[1725787291431,45.0,130.66,130.61,1.53102767]
[1725787291600,45.0,130.66,130.6,16.4648]
[1725787291999,5.3571,130.67,130.6,16.4648]
[1725787292228,21.4419,130.68,130.61,27.53767139]
[1725787297041,21.4419,130.68,130.63,27.53767139]
[1725787297042,16.0852,130.68,130.63,27.53767139]
[1725787297223,16.0852,130.71,130.65,27.53767139]
[1725787297436,0.3,130.73,130.67,27.53767139]
[1725787297742,15.7424974,130.74,130.67,27.53767139]
[1725787300540,45.0,130.73,130.67,27.53767139]
[1725787301615,10.3883974,130.74,130.67,27.53767139]
[1725787302444,10.3883974,130.74,130.69,27.53767139]
[1725787302741,15.3035,130.75,130.69,27.53767139]
[1725787303038,15.7412974,130.77,130.69,27.53767139]
[1725787303430,15.7412974,130.77,130.71,27.53767139]
[1725787303636,15.3035,130.78,130.73,27.53767139]
[1725787304146,25.6918974,130.78,130.73,27.53767139]
[1725787304344,30.5443974,130.78,130.71,43.62137139]
[1725787305021,5.3534,130.76,130.69,27.53767139]
[1725787305225,10.3883974,130.75,130.68,22.0993]
[1725787307843,5.3541,130.74,130.67,27.53767139]
[1725787309958,15.7421974,130.75,130.67,27.53767139]
[1725787310150,5.3538,130.75,130.69,27.53767139]
[1725787311549,5.3529,130.77,130.69,27.53767139]
[1725787311740,5.3529,130.77,130.65,23.1402]
[1725787311741,5.3529,130.77,130.71,27.53767139]
[1725787311942,14.8035,130.78,130.71,27.53767139]
[1725787311943,20.1561,130.78,130.71,27.53767139]
[1725787312143,14.8035,130.78,130.73,27.53767139]
[1725787313456,15.7406974,130.79,130.73,27.53767139]
[1725787313628,10.3883974,130.79,130.73,27.53767139]
[1725787313833,21.2515,130.81,130.75,27.53767139]
[1725787314261,5.3509,130.82,130.77,27.53767139]
[1725787314437,21.8554974,130.83,130.77,27.53767139]
[1725787314633,16.5050974,130.83,130.77,27.53767139]
[1725787314829,10.3883974,130.83,130.77,27.53767139]
[1725787318253,45.0,130.82,130.75,27.53767139]
[1725787318467,50.3508,130.82,130.75,27.53767139]
[1725787320043,15.7388974,130.83,130.75,27.53767139]
[1725787320652,45.0,130.82,130.75,27.53767139]
[1725787320962,50.3509,130.82,130.75,27.53767139]
[1725787322557,5.3525,130.78,130.73,27.53767139]
[1725787322737,5.3521,130.79,130.71,34.15497139]
[1725787322936,5.3526,130.78,130.71,34.15497139]
[1725787323162,45.0,130.77,130.71,27.53767139]
[1725787323857,45.0,130.77,130.69,27.53767139]
[1725787324039,45.0,130.78,130.69,27.53767139]
[1725787324368,5.353,130.77,130.69,27.53767139]
[1725787324554,45.0,130.76,130.69,27.53767139]
[1725787328773,50.3534,130.76,130.69,27.53767139]
[1725787329865,55.3883974,130.76,130.67,44.06057139]
[1725787330067,10.3883974,130.75,130.67,44.06057139]
[1725787330367,45.0,130.74,130.67,44.06057139]
[1725787330767,50.3541,130.74,130.67,44.06057139]
[1725787332184,45.0,130.74,130.69,27.53767139]
[1725787333158,45.0,130.74,130.67,44.06057139]
[1725787333383,5.3536,130.76,130.69,27.53767139]
[1725787333562,5.3539,130.75,130.69,27.53767139]
[1725787333875,45.0,130.74,130.69,27.53767139]
[1725787334071,10.3883974,130.75,130.69,27.53767139]
[1725787334974,26.2882974,130.79,130.71,27.53767139]
[1725787335171,45.0,130.78,130.71,27.53767139]
[1725787335476,15.7415974,130.77,130.71,27.53767139]
[1725787335679,45.0,130.76,130.71,27.53767139]
[1725787338981,60.7416974,130.76,130.69,27.53767139]
[1725787339157,5.3538,130.75,130.69,27.53767139]
[1725787340394,50.3542,130.74,130.67,27.53767139]
[1725787340564,45.0,130.74,130.67,27.53767139]
[1725787340765,5.3538,130.75,130.67,27.53767139]
[1725787341176,45.0,130.74,130.67,27.53767139]
[1725787342080,50.3542,130.74,130.67,27.53767139]
[1725787342279,45.0,130.74,130.67,27.53767139]
[1725787343994,45.0,130.74,130.69,11.04080002]
[1725787344571,5.3537,130.75,130.65,6.181]
[1725787344572,15.8999,130.79,130.73,11.04080002]
[1725787344881,21.2521,130.79,130.73,11.04080002]
[1725787345182,10.3883974,130.81,130.75,11.04080002]
[1725787345490,10.3883974,130.81,130.77,11.04080002]
[1725787347999,45.0,130.8,130.74,27.57657678]
[1725787348203,10.3883974,130.79,130.72,27.57657678]
[1725787348899,45.0,130.8,130.74,27.57657678]
[1725787349078,45.0,130.81,130.74,27.57657678]
[1725787349396,45.0,130.81,130.76,27.57657678]
[1725787351401,55.3883974,130.81,130.76,27.57657678]
[1725787353181,45.0,130.81,130.76,27.57657678]
[1725787356687,15.5409,130.82,130.76,27.57657678]
[1725787357202,25.9292974,130.82,130.76,27.57657678]
[1725787359584,6.609,130.84,130.78,27.57657678]
[1725787359778,45.0,130.83,130.78,27.57657678]
[1725787360208,21.979,130.85,130.78,27.57657678]
[1725787360503,45.0,130.84,130.78,27.57657678]
[1725787363601,50.3501,130.84,130.76,49.60507678]
[1725787363797,5.3504,130.83,130.76,49.60507678]
[1725787364105,5.3504,130.83,130.69,27.57657678]
[1725787364106,45.0,130.82,130.74,27.57657678]
[1725787366413,45.0,130.83,130.74,27.57657678]
[1725787367714,10.3883974,130.82,130.74,27.57657678]
[1725787367899,45.0,130.81,130.74,27.57657678]
[1725787368788,50.3512,130.81,130.74,27.57657678]
[1725787369508,45.0,130.81,130.74,27.57657678]
[1725787369700,5.3518,130.8,130.73,22.0285]
[1725787370002,45.0,130.79,130.73,22.0285]
[1725787370217,50.3513,130.81,130.73,22.0285]
[1725787374120,50.3513,130.81,130.75,11.03138172]
[1725787377313,16.9293,130.85,130.79,11.03138172]
[1725787377522,16.6293,130.85,130.79,11.03138172]
[1725787378823,5.3492,130.86,130.81,11.03138172]
[1725787379896,5.3492,130.86,130.79,29.08228661]
[1725787380215,45.0,130.85,130.79,29.08228661]
[1725787380591,45.0,130.85,130.8,1.52887764]
[1725787380798,45.0,130.86,130.8,1.52887764]
[1725787381318,26.7816943,130.88,130.81,27.55340322]
[1725787382630,0.8608969,130.88,130.83,27.55340322]
[1725787382935,0.8608969,130.88,130.85,27.55340322]
[1725787383096,0.8608969,130.88,130.85,29.08157634]
[1725787383428,0.8608969,130.88,130.85,27.55340322]
[1725787387629,0.8608969,130.88,130.87,27.55340322]
[1725787389925,0.8608969,130.88,130.85,27.55340322]
[1725787393214,0.8608969,130.88,130.87,27.55340322]
[1725787395121,0.8608969,130.88,130.85,27.55340322]
[1725787397235,0.8608969,130.88,130.83,49.50830322]
[1725787400038,0.8608969,130.88,130.84,11.01552244]
[1725787400721,0.8608969,130.88,130.78,22.7786]
[1725787400925,6.2092969,130.88,130.82,11.01552244]
[1725787402026,6.2092969,130.88,130.81,27.54742636]
[1725787404651,0.8608969,130.88,130.81,27.54742636]
[1725787406047,6.2092969,130.88,130.81,27.54742636]
[1725787406844,45.0,130.87,130.81,27.54742636]
[1725787407427,45.0,130.87,130.82,1.52858898]
[1725787407742,0.8608969,130.88,130.81,27.54742636]
[1725787408053,6.2092969,130.88,130.81,27.54742636]
[1725787410920,0.8608969,130.88,130.81,27.54742636]
[1725787411125,5.3488,130.87,130.81,27.54742636]
[1725787412244,6.2093969,130.88,130.81,27.54742636]
[1725787412651,45.0,130.87,130.81,27.54742636]
[1725787414847,45.0,130.87,130.78,22.7786]
[1725787414848,0.8608969,130.88,130.83,27.54742636]
[1725787418332,6.2092969,130.88,130.81,27.54742636]
[1725787418529,45.0,130.87,130.78,22.7786]
[1725787418828,45.0,130.87,130.76,27.54742636]
[1725787418829,5.35,130.84,130.76,27.54742636]
[1725787419042,45.0,130.83,130.76,27.54742636]
[1725787419458,45.0,130.83,130.75,16.401]
[1725787419629,55.3883974,130.83,130.74,34.04892636]
[1725787420243,5.3512,130.82,130.74,34.04892636]
[1725787420441,50.3512,130.81,130.74,6.5015]
[1725787420633,21.2689,130.81,130.72,43.94842636]
[1725787420832,45.0,130.8,130.72,43.94842636]
[1725787424755,45.0,130.8,130.72,45.47796504]
[1725787425137,45.0,130.8,130.72,43.94842636]
[1725787427140,50.3518,130.8,130.72,43.94842636]
[1725787427370,22.2895,130.81,130.74,27.54742636]